bitfinex-derivatives/quotes_ETHF0:USTF0_20210702
["timestamp","ask_amount","ask_price","bid_price","bid_amount"]
[1625212775215,2.20527,2061.4,2061.2,57.43377]
[1625212775870,5.0,2061.3,2061.0,0.74827]
[1625212775972,5.0,2061.3,2060.0,2.74654971]
[1625212776475,5.26317,2061.4,2060.0,2.74654971]
[1625212776623,5.26317,2061.4,2060.0,3.1194]
[1625212776725,2.20527,2060.9,2060.5,2.20527]
[1625212777273,5.07357,2060.9,2060.5,2.20527]
[1625212777478,5.07357,2060.9,2059.6,2.74882383]
[1625212777878,5.07357,2060.9,2059.3,2.75151419]
[1625212778378,5.07357,2060.9,2059.4,0.14328471]
[1625212778532,5.07357,2060.9,2059.4,3.50998471]
[1625212778732,2.20527,2060.2,2060.0,2.20527]
[1625212779082,2.20527,2060.4,2060.0,2.20527]
[1625212780730,2.20527,2060.1,2060.0,2.20527]
[1625212781331,5.14757,2060.1,2060.0,2.20527]
[1625212781481,5.14757,2060.1,2059.3,2.75162687]
[1625212781582,5.14757,2060.1,2059.1,2.75450066]
[1625212782034,5.14757,2060.1,2059.0,2.75542233]
[1625212782183,5.14757,2060.1,2059.2,0.14330438]
[1625212782536,5.14757,2060.1,2059.1,0.14330832]
[1625212782735,2.20527,2059.7,2059.4,2.20527]
[1625212782935,7.20527,2059.7,2059.4,2.20527]
[1625212783088,7.20527,2059.7,2059.2,2.20527]
[1625212784101,7.20527,2059.7,2058.4,2.76062294]
[1625212784302,7.20527,2059.7,2058.4,1.11762294]
[1625212784502,7.20527,2059.7,2058.2,3.16743276]
[1625212784652,7.20527,2059.7,2058.1,2.76327298]
[1625212784753,2.20527,2058.6,2058.4,2.20527]
[1625212784952,5.49407,2058.6,2058.4,2.20527]
[1625212786805,7.69934,2058.6,2058.4,2.20527]
[1625212788964,12.69934,2058.6,2058.4,2.20527]
[1625212789467,7.69934,2058.6,2058.4,2.20527]
[1625212790121,7.69934,2058.6,2058.2,2.20527]
[1625212790421,12.69934,2058.6,2058.2,2.20527]
[1625212790623,7.69934,2058.6,2058.2,2.20527]
[1625212790873,2.20527,2058.3,2058.2,2.20527]
[1625212794881,2.20527,2058.6,2058.2,2.20527]
[1625212794983,16.6196,2060.9,2058.2,5.48007]
[1625212795084,16.6196,2060.9,2058.3,1.0]
[1625212795182,5.0,2060.3,2058.3,1.0]
[1625212795284,5.0,2060.3,2058.2,5.48007]
[1625212795385,6.0,2060.3,2058.2,5.48007]
[1625212795784,1.0,2060.3,2058.2,5.48007]
[1625212796434,1.0,2060.3,2058.3,0.14332648]
[1625212796535,15.6196,2060.9,2058.3,0.14332648]
[1625212796636,1.0,2060.8,2058.3,0.14332648]
[1625212796785,15.6196,2060.9,2058.3,0.14332648]
[1625212796887,2.20527,2060.4,2060.3,2.20527]
[1625212796997,2.20527,2060.4,2060.3,4.56767]
[1625212797089,2.20527,2060.6,2060.3,4.56767]
[1625212797436,15.662,2062.1,2060.3,4.56767]
[1625212798287,5.0,2062.0,2060.3,2.20527]
[1625212798588,22.52,2062.0,2060.3,2.20527]
[1625212798838,4.41054,2060.4,2060.3,2.20527]
[1625212798944,4.41054,2060.4,2058.5,1.0]
[1625212799050,7.22804,2060.4,2058.4,4.40122863]
[1625212799188,7.22804,2060.4,1958.0,97.03644073]
[1625212799189,7.22804,2060.4,2058.3,4.40330798]
[1625212799289,8.22804,2060.4,2058.3,4.40330798]
[1625212799389,13.22804,2060.4,2058.1,4.40587817]
[1625212799539,13.22804,2060.4,2058.4,0.14332715]
[1625212799692,12.22804,2060.4,2058.4,0.14332715]
[1625212799891,7.22804,2060.4,2058.2,0.14334832]
[1625212800194,7.22804,2060.4,2057.8,1.0]
[1625212800294,7.22804,2060.4,2058.8,1.42057668]
[1625212800664,7.22804,2060.4,2058.9,1.42055345]
[1625212800910,2.20527,2059.5,2059.4,2.20527]
[1625212801310,2.20527,2059.5,2059.4,3.06526409]
[1625212805673,2.20527,2059.5,2059.4,2.20527]
[1625212805873,2.20527,2059.5,2059.2,2.20527]
[1625212805975,2.20527,2059.5,2059.2,0.74727]
[1625212807024,2.20527,2059.4,2059.2,0.74727]
[1625212813489,2.20527,2059.4,2058.7,4.40818358]
[1625212815152,2.20527,2059.4,2059.0,2.20527]
[1625212815797,2.20527,2059.4,2058.7,6.78398358]
[1625212817058,2.20527,2059.4,2058.9,2.20527]
[1625212818063,7.20527,2059.4,2058.7,6.61345358]
[1625212818164,7.20527,2059.4,2058.7,5.15545358]
[1625212818364,7.20527,2059.4,2058.1,11.13857686]
[1625212818517,17.64,2059.3,2058.1,6.72634422]
[1625212818613,5.0,2059.2,2058.1,6.72634422]
[1625212818816,1.15,2058.9,2057.8,4.4151621]
[1625212818917,1.15,2058.9,2056.8,4.42795873]
[1625212819115,4.41054,2057.8,2056.8,6.63322873]
[1625212819217,7.59294,2057.8,2056.8,6.63322873]
[1625212819426,7.59294,2057.8,2056.8,2.20527]
[1625212819526,12.59294,2057.8,2057.7,9.86045896]
[1625212819775,12.59294,2057.8,2057.7,8.70045896]
[1625212819976,7.59294,2057.8,2057.7,8.70045896]
[1625212820478,12.59294,2057.8,2057.7,8.70045896]
[1625212820576,12.59294,2057.8,2057.7,7.54045896]
[1625212820833,7.59294,2057.8,2057.7,7.54045896]
[1625212821430,7.59294,2057.8,2057.7,6.38045896]
[1625212821730,12.59294,2057.8,2057.7,6.38045896]
[1625212822230,7.59294,2057.8,2057.7,5.22045896]
[1625212822331,7.59294,2057.8,2057.7,4.06045896]
[1625212822630,7.59294,2057.8,2057.7,2.90045896]
[1625212822934,12.59294,2057.8,2057.7,0.58045896]
[1625212823134,12.59294,2057.8,2056.4,2.20527]
[1625212823936,7.59294,2057.8,2056.4,2.20527]
[1625212825192,4.1238996,2057.2,2056.9,2.20527]
[1625212825291,4.1238996,2057.2,2056.4,2.20527]
[1625212825543,2.97634243,2057.2,2056.4,2.20527]
[1625212827144,2.97634243,2057.2,2056.4,4.41054]
[1625212829314,2.97634243,2057.2,2056.4,2.20527]
[1625212830368,2.97634243,2057.2,2056.5,3.0287]
[1625212831119,1.0,2058.5,2057.1,17.56297369]
[1625212831220,2.20527,2057.6,2057.5,2.20527]
[1625212831322,2.20527,2057.8,2057.5,2.20527]
[1625212831421,15.4236,2059.2,2057.5,2.20527]
[1625212831520,5.0,2059.7,2057.5,2.20527]
[1625212831771,3.4775,2060.3,2057.5,2.20527]
[1625212832324,6.0,2060.2,2057.5,2.20527]
[1625212832422,23.71,2060.2,2057.5,2.20527]
[1625212833224,2.20527,2058.5,2058.0,2.20527]
[1625212835292,2.20527,2058.5,2058.4,2.20527]
[1625212837700,2.20527,2058.5,2058.0,2.20527]
[1625212839311,2.20527,2058.2,2058.0,2.20527]
[1625212839512,7e-05,2058.2,2058.0,2.20527]
[1625212839613,2.20527,2058.5,2058.0,2.20527]
[1625212839711,2.20527,2058.5,2058.0,4.90457]
[1625212839915,1.1,2059.1,2058.0,4.90457]
[1625212841318,2.20527,2059.0,2058.5,2.20527]
[1625212841420,1.1,2058.9,2058.5,2.20527]
[1625212843321,1.1,2058.9,2058.8,2.20527]
[1625212843474,4.0464,2058.9,2058.5,2.20527]
[1625212843622,4.0464,2058.9,2057.2,1.0]
[1625212843723,4.0464,2058.9,2057.1,13.77557369]
[1625212844274,4.0464,2058.9,2057.2,0.15737623]
[1625212844576,4.0464,2058.9,2057.3,0.14341802]
[1625212844875,4.0464,2058.9,2057.4,0.15788724]
[1625212845376,4.0464,2058.9,2058.2,2.20527]
[1625212845876,5.0,2058.8,2058.2,2.20527]
[1625212845979,1.1,2058.7,2058.2,2.20527]
[1625212847281,1.1,2058.7,2057.1,13.77557369]
[1625212847432,2.20527,2057.9,2057.2,2.20527]
[1625212847581,2.20527,2057.9,2057.2,1.01527]
[1625212851393,2.20527,2057.9,2057.1,13.77557369]
[1625212853413,2.20527,2057.9,2057.3,2.20527]
[1625212855349,2.20527,2057.6,2057.3,2.20527]
[1625212855551,1.05769407,2057.6,2057.3,2.20527]
[1625212857401,2.20527,2057.9,2057.3,2.20527]
[1625212859354,2.20527,2057.6,2057.3,2.20527]
[1625212859453,2.20527,2057.9,2057.3,2.20527]
[1625212861357,2.20527,2057.9,2057.8,4.41054]
[1625212870346,2.20527,2057.9,2057.2,1.92987858]
[1625212870650,2.20527,2057.9,2057.3,0.1434488]
[1625212871449,2.20527,2057.9,2057.5,2.20527]
[1625212871850,2.20527,2057.9,2057.6,0.14344959]
[1625212873706,2.20527,2057.9,2057.5,2.20527]
[1625212877477,4.41054,2057.9,2057.5,2.20527]
[1625212879233,7.70264,2057.9,2057.3,4.1396049]
[1625212879491,2.20527,2057.5,2057.3,2.20527]
[1625212881495,2.20527,2057.4,2057.3,2.20527]
[1625212882306,4.92367,2057.4,2057.3,2.20527]
[1625212882904,4.92367,2057.4,2057.1,11.77557369]
[1625212883005,5.0,2057.3,2057.1,0.66757369]
[1625212883454,6.02367,2057.4,2057.1,0.66757369]
[1625212883609,2.20527,2057.2,2057.1,0.66757369]
[1625212887815,7.20527,2057.2,2057.1,0.66757369]
[1625212888017,7.20527,2057.2,2057.1,7.369e-05]
[1625212888166,7.20527,2057.2,2056.2,2.20527]
[1625212888266,2.20527,2057.2,2056.2,2.20527]
[1625212888467,55.6213,2056.3,2056.2,2.20527]
[1625212888826,54.47314448,2056.3,2056.2,2.20527]
[1625212888926,54.47314448,2056.3,2056.2,2.34880711]
[1625212889528,58.88368448,2056.3,2056.2,2.34880711]
[1625212890338,4.41054,2056.3,2056.2,2.34880711]
[1625212892703,7.56564,2056.3,2056.2,2.34880711]
[1625212899348,7.56564,2056.3,2056.2,0.14353711]
[1625212899450,12.56564,2056.3,2055.5,1.93935056]
[1625212899550,13.66564,2056.3,2055.5,1.93935056]
[1625212899649,4.41054,2055.6,2055.5,1.93935056]
[1625212899796,6.75554,2055.6,2055.5,1.93935056]
[1625212900098,6.75554,2055.6,2055.5,5.056e-05]
[1625212900198,11.75554,2055.6,2055.5,0.14358307]
[1625212900297,6.75554,2055.6,2055.5,0.14358307]
[1625212900550,6.75554,2055.6,2055.2,2.0607016]
[1625212901151,6.75554,2055.6,2055.0,4.78980128]
[1625212901249,59.3376,2055.1,2054.4,8.3115024]
[1625212901350,63.1383,2055.1,2054.4,8.3115024]
[1625212901452,68.1383,2055.1,2054.4,8.3115024]
[1625212901550,63.1383,2055.1,2054.4,8.3115024]
[1625212901652,4.41054,2054.7,2054.4,8.3115024]
[1625212901753,4.41054,2054.7,2054.5,5.54577277]
[1625212902202,4.41054,2054.7,2054.3,2.20527]
[1625212902649,3.8007,2055.1,2054.3,2.20527]
[1625212902800,2.345,2055.6,2054.4,0.14364491]
[1625212902801,1.0,2055.6,2054.4,0.14364491]
[1625212902899,7.11469568,2058.0,2054.4,0.14364491]
[1625212903050,7.11457254,2057.9,2054.4,0.14364491]
[1625212903149,7.11457254,2057.9,2054.5,0.15843197]
[1625212903352,1.1,2057.6,2054.5,0.15843197]
[1625212903603,2.20527,2056.5,2055.4,2.20527]
[1625212903701,2.20527,2056.5,2055.4,4.52457]
[1625212904353,2.20527,2056.5,2055.5,0.14356979]
[1625212905656,2.20527,2056.5,2055.9,2.20527]
[1625212907158,2.20527,2056.5,2055.4,2.20527]
[1625212907258,5.64647,2056.5,2055.4,2.20527]
[1625212907665,2.20527,2055.8,2055.0,2.20527]
[1625212907762,5.14627,2055.8,2055.0,2.20527]
[1625212907971,5.14627,2055.8,2054.9,2.7714193]
[1625212908063,5.14627,2055.8,2054.6,17.59679607]
[1625212908212,44.2336,2055.6,2055.1,0.1435974]
[1625212908514,44.2336,2055.6,2054.6,17.59679607]
[1625212908515,44.2336,2055.6,2054.7,0.14360131]
[1625212909669,2.20527,2055.3,2054.7,2.34887131]
[1625212910068,2.20527,2055.3,2054.7,2.20527]
[1625212910922,10.55257,2055.3,2054.2,2.77112591]
[1625212911271,10.55257,2055.3,2053.9,2.7720695]
[1625212911524,5.55257,2055.3,2053.9,2.7720695]
[1625212911777,1.0,2055.5,2054.0,5.25477]
[1625212911778,2.20527,2054.4,2054.0,5.25477]
[1625212911872,2.20527,2054.4,2054.0,6.11662399]
[1625212912172,2.20527,2054.6,2054.0,6.11662399]
[1625212912274,2.20527,2054.6,2054.1,0.86186532]
[1625212912625,2.20527,2054.6,2054.1,0.14364422]
[1625212912825,1.0,2055.5,2054.1,0.14364422]
[1625212912937,44.2336,2055.6,2054.1,0.14364422]
[1625212913224,49.2336,2055.6,2054.1,0.14364422]
[1625212913634,44.2336,2055.6,2054.1,0.14364422]
[1625212913731,2.20527,2054.5,2054.1,0.14364422]
[1625212914131,2.20527,2054.5,2054.0,2.20527]
[1625212914380,46.7193,2054.3,2054.0,2.20527]
[1625212915494,51.7193,2054.3,2054.0,2.20527]
[1625212915643,46.7193,2054.3,2054.0,2.20527]
[1625212915743,4.88337,2054.1,2054.0,2.20527]
[1625212917503,4.88337,2054.1,2053.8,2.20527]
[1625212917700,4.88337,2054.1,2052.5,19.76820221]
[1625212917701,2.20527,2053.9,2053.5,2.20527]
[1625212917801,2.20527,2053.9,2052.5,19.76820221]
[1625212918000,2.20527,2053.9,2052.5,17.0]
[1625212919357,5.0,2053.8,2052.5,17.0]
[1625212919607,2.20527,2053.9,2052.5,17.0]
[1625212919757,2.20527,2052.8,2052.7,2.20527]
[1625212920406,1.0,2054.0,2052.7,2.20527]
[1625212920508,45.6269,2054.4,2052.7,2.20527]
[1625212920607,45.6269,2054.4,2052.7,4.80997]
[1625212921564,1.0,2054.6,2052.7,4.80997]
[1625212921663,15.8193,2054.9,2052.7,4.80997]
[1625212921764,2.20527,2054.3,2054.1,2.20527]
[1625212921868,2.20527,2054.3,2054.1,5.15477]
[1625212922616,1.0,2055.3,2054.1,5.15477]
[1625212922727,3.626,2057.4,2054.1,5.15477]
[1625212922728,1.41298452,2057.1,2054.1,5.15477]
[1625212922916,5.0,2056.2,2054.1,5.15477]
[1625212923068,63.3934,2055.8,2054.1,5.15477]
[1625212923267,63.3934,2055.8,2054.1,2.20527]
[1625212923619,1.1,2055.7,2054.1,2.20527]
[1625212923719,2.20527,2054.9,2054.8,2.20527]
[1625212923816,7.20527,2054.9,2054.6,2.20527]
[1625212924068,8.30527,2054.9,2053.0,1.0]
[1625212924169,8.30527,2054.9,2052.9,7.0]
[1625212924269,3.30527,2054.9,2052.9,7.0]
[1625212925023,8.30527,2054.9,2052.9,7.0]
[1625212925224,8.30527,2054.9,2052.9,8.0]
[1625212925427,3.30527,2054.9,2052.9,8.0]
[1625212925525,2.20527,2054.9,2052.9,8.0]
[1625212925725,2.20527,2054.4,2054.2,2.20527]
[1625212925875,5.21037,2054.4,2054.2,2.20527]
[1625212926128,5.21037,2054.4,2052.9,17.0]
[1625212927283,1.0,2054.9,2052.9,17.0]
[1625212927382,3.79,2055.0,2052.9,19.7424]
[1625212927483,4.79,2055.0,2052.9,19.7424]
[1625212927732,2.20527,2054.8,2054.7,2.20527]
[1625212928231,2.20527,2054.8,2054.5,2.20527]
[1625212929833,2.20527,2054.6,2054.5,2.20527]
[1625212930988,2.20527,2054.6,2052.9,16.538]
[1625212931089,4.2618,2054.5,2052.9,16.538]
[1625212931435,55.5153,2053.5,2052.9,16.538]
[1625212931637,4.2618,2054.5,2052.9,16.538]
[1625212931739,1.0,2054.5,2052.9,19.2847]
[1625212931844,1.0,2054.5,2054.3,5.71637]
[1625212931940,1.0,2054.5,2054.3,3.5111]
[1625212933555,1.0,2054.4,2054.3,3.5111]
[1625212933655,2.20527,2054.6,2054.3,3.5111]
[1625212933803,2.20527,2054.4,2054.3,3.5111]
[1625212934557,1.1,2055.2,2054.3,3.5111]
[1625212934658,8.0,2056.8,2054.3,3.5111]
[1625212934758,1.1,2055.7,2054.3,3.5111]
[1625212935614,1.0,2055.6,2054.3,3.5111]
[1625212935813,1.0,2055.6,2055.5,4.41054]
[1625212935914,15.4892,2056.7,2055.5,6.81424]
[1625212936112,5.640671,2058.9,2055.5,6.81424]
[1625212936216,41.542,2058.2,2055.5,6.81424]
[1625212936670,1.0,2058.1,2055.5,6.81424]
[1625212936769,18.52,2058.1,2055.5,6.81424]
[1625212936972,1.1,2058.0,2055.5,6.81424]
[1625212937072,1.0,2057.9,2055.5,6.81424]
[1625212937171,1.1,2057.8,2055.5,6.81424]
[1625212937269,1.0,2057.7,2055.5,11.81424]
[1625212937371,1.0,2057.7,2055.6,17.55]
[1625212937822,2.20527,2057.5,2057.4,2.20527]
[1625212939880,4.41054,2057.5,2057.4,2.20527]
[1625212939981,4.41054,2057.5,2057.2,2.20527]
[1625212940086,1.0,2057.4,2054.8,14.8982]
[1625212940180,2.1,2057.4,2054.8,14.8982]
[1625212941838,5.22747,2056.6,2056.5,2.20527]
[1625212941934,6.22747,2056.6,2056.5,2.20527]
[1625212942137,6.22747,2056.6,2056.3,2.20527]
[1625212943847,7.43274,2056.6,2056.3,4.41054]
[1625212943940,43.2526,2057.8,2056.3,7.64704]
[1625212943941,1.0,2057.0,2056.3,7.64704]
[1625212944040,1.1,2057.8,2056.3,7.64704]
[1625212945043,1.0,2057.7,2056.3,7.64704]
[1625212945845,2.20527,2057.5,2057.4,2.20527]
[1625212945944,3.20527,2057.5,2057.4,2.20527]
[1625212947395,64.06977,2057.5,2057.4,2.20527]
[1625212947997,5.41054,2057.5,2057.4,2.20527]
[1625212948448,51.97614,2057.5,2057.4,2.20527]
[1625212948959,51.97614,2057.5,2057.4,0.74527]
[1625212949364,5.41054,2057.5,2057.4,0.74527]
[1625212949460,4.41054,2057.5,2057.4,0.74527]
[1625212949560,1.0,2058.1,2057.4,0.74527]
[1625212949712,1.0,2058.1,2057.4,3.96227]
[1625212949915,2.20527,2058.4,2058.0,4.41054]
[1625212950016,2.20527,2058.6,2058.0,7.84214]
[1625212951717,2.20527,2058.6,2058.0,4.41054]
[1625212951821,1.0,2058.5,2056.5,14.6547]
[1625212951922,2.20527,2057.9,2057.8,2.20527]
[1625212952169,2.20527,2058.6,2057.8,2.20527]
[1625212952271,2.20527,2058.6,2057.8,5.27917]
[1625212952373,1.41123971,2060.4,2057.8,5.27917]
[1625212952469,10.82247941,2060.6,2057.8,5.27917]
[1625212952470,9.41124705,2060.6,2057.8,5.27917]
[1625212952571,1.1,2060.2,2057.8,5.27917]
[1625212953120,1.0,2060.0,2057.8,5.27917]
[1625212953979,2.20527,2059.3,2059.2,5.91457]
[1625212956842,1.0,2060.3,2059.2,5.91457]
[1625212957495,1.1,2061.2,2059.2,5.91457]
[1625212957847,1.0,2061.0,2059.2,5.91457]
[1625212957945,2.20527,2060.2,2060.1,2.20527]
[1625212958049,5.50057,2060.2,2058.0,15.0725]
[1625212959150,2.20527,2060.2,2058.0,15.0725]
[1625212959849,2.20527,2060.2,2058.1,17.6]
[1625212959950,4.41054,2060.2,2060.1,2.20527]
[1625212960502,5.41054,2060.2,2060.1,2.20527]
[1625212960608,4.41054,2060.2,2060.1,2.20527]
[1625212964371,1.0,2060.8,2060.1,2.20527]
[1625212965630,1.0,2060.7,2060.1,2.20527]
[1625212965731,3.6792,2060.7,2060.1,2.20527]
[1625212966033,2.20527,2060.6,2060.4,2.20527]
[1625212966132,1.0,2060.5,2060.4,2.20527]
[1625212966433,1.0,2060.5,2060.4,1.05816442]
[1625212967287,1.0,2060.5,2060.1,2.20527]
[1625212967589,1.0,2060.5,2058.0,13.6145]
[1625212967991,2.20527,2059.2,2059.1,2.20527]
[1625212968092,4.99547,2059.2,2059.1,2.20527]
[1625212968241,5.99547,2059.2,2058.0,13.6145]
[1625212968597,5.99547,2059.2,2055.6,1.36074851]
[1625212968895,5.99547,2059.2,2055.4,15.3429]
[1625212969098,5.99547,2059.2,2055.7,0.14346816]
[1625212969197,20.99107,2059.2,2055.9,1.15]
[1625212970112,5.72347,2058.1,2058.0,2.20527]
[1625212970223,6.72347,2058.1,2058.0,2.20527]
[1625212970575,5.72347,2058.1,2058.0,2.20527]
[1625212970675,6.72347,2058.1,2058.0,2.20527]
[1625212971531,6.72347,2058.1,2055.4,15.3429]
[1625212971782,6.72347,2058.1,2055.4,20.3429]
[1625212972035,2.20527,2057.6,2057.4,2.20527]
[1625212972133,1.0,2057.5,2057.4,2.20527]
[1625212972734,2.20527,2057.6,2057.4,2.20527]
[1625212972887,2.20527,2057.6,2057.4,5.14047]
[1625212973138,2.20527,2058.1,2057.4,5.14047]
[1625212973837,1.0,2058.0,2057.4,5.14047]
[1625212973989,8.6398,2058.0,2057.4,2.20527]
[1625212974092,4.41054,2057.5,2057.2,1.45627]
[1625212974189,1.0,2057.4,2057.2,1.45627]
[1625212974391,1.0,2057.4,2055.4,15.3429]
[1625212974996,1.0,2057.4,2054.2,1.36602499]
[1625212975093,1.0,2057.4,2054.1,1.36642855]
[1625212975094,1.1,2057.3,2054.1,1.36642855]
[1625212975194,1.0,2057.2,2054.1,1.36642855]
[1625212975295,1.1,2057.1,2054.1,1.36642855]
[1625212975400,1.1,2057.1,2054.0,15.2349]
[1625212975401,3.3175,2057.0,2054.0,15.2349]
[1625212975599,3.3175,2057.0,2054.2,0.14357093]
[1625212975897,3.3175,2057.0,2054.1,0.14356482]
[1625212975999,3.3175,2057.0,2056.0,2.20527]
[1625212976100,5.83967,2056.3,2056.0,2.20527]
[1625212977460,1.0,2056.2,2056.0,2.20527]
[1625212977961,5.83967,2056.3,2056.0,2.20527]
[1625212978109,5.83967,2056.3,2056.2,2.20527]
[1625212978516,3.6344,2056.3,2056.2,2.20527]
[1625212980839,2.20527,2056.6,2056.2,2.20527]
[1625212981844,7e-05,2056.6,2056.2,2.20527]
[1625212981940,3.7398,2058.0,2056.2,2.20527]
[1625212982040,14.7864,2060.0,2056.2,2.20527]
[1625212982143,14.7864,2060.0,2057.2,2.20527]
[1625212982242,5.0,2058.9,2057.2,2.20527]
[1625212982791,1.0,2058.8,2057.2,2.20527]
[1625212983194,1.1,2058.7,2057.2,2.20527]
[1625212983295,1.0,2058.6,2057.2,2.20527]
[1625212983392,2.1,2058.6,2057.2,2.20527]
[1625212984098,2.1,2058.6,2058.2,2.20527]
[1625212984198,2.20527,2058.3,2058.2,2.20527]
[1625212984298,3.20527,2058.3,2058.2,2.20527]
[1625212986109,5.41054,2058.3,2058.2,2.20527]
[1625212989541,4.41054,2058.3,2058.2,2.20527]
[1625212989638,5.41054,2058.3,2058.2,2.20527]
[1625212989890,4.41054,2058.3,2058.2,2.20527]
[1625212993498,5.41054,2058.3,2058.2,2.20527]
[1625212993699,4.41054,2058.3,2058.2,2.20527]
[1625212993799,5.41054,2058.3,2058.2,2.20527]
[1625212993951,4.41054,2058.3,2058.2,2.20527]
[1625212994049,1.1,2059.4,2058.2,2.20527]
[1625212994151,2.20527,2059.6,2059.5,2.20527]
[1625212994351,2.20527,2059.6,2059.5,5.25667]
[1625212994953,3.20527,2059.6,2059.5,5.25667]
[1625212996208,5.41054,2059.6,2059.5,5.25667]
[1625212998926,5.41054,2059.6,2057.9,14.04195758]
[1625212999078,5.41054,2059.6,2056.3,15.2472]
[1625212999079,13.0,2059.5,2056.3,15.2472]
[1625212999181,8.0,2059.3,2056.3,15.2472]
[1625212999279,8.0,2059.0,2056.3,13.6032]
[1625212999431,8.0,2058.8,2056.3,13.6032]
[1625212999585,44.9135,2057.1,2054.7,1.36205599]
[1625212999685,3.3429,2057.0,2054.7,1.36205599]
[1625212999884,3.3429,2057.0,2054.8,0.15790334]
[1625213000137,3.3429,2057.0,2054.5,0.1579157]
[1625213000284,5.37747,2056.2,2056.1,2.20527]
[1625213000432,6.37747,2056.2,2056.1,2.20527]
[1625213000989,6.37747,2056.2,2055.9,2.20527]
[1625213002247,2.20527,2056.0,2055.9,2.20527]
[1625213002345,3.20527,2056.0,2055.9,2.20527]
[1625213002745,3.20527,2056.0,2055.5,2.20527]
[1625213002950,3.20527,2056.0,2053.4,1.36738455]
[1625213003148,3.20527,2056.0,2053.5,0.15801395]
[1625213003547,3.20527,2056.0,2053.4,0.15803238]
[1625213004199,2.20527,2055.3,2055.2,2.20527]
[1625213004297,5.97877,2055.3,2055.2,2.20527]
[1625213005047,4.97877,2055.3,2055.2,2.20527]
[1625213005855,15.0853,2056.8,2055.2,2.20527]
[1625213005951,1.1,2058.6,2055.2,10.30467]
[1625213006051,1.1,2058.6,2055.3,1.0]
[1625213006207,2.20527,2058.0,2057.9,2.20527]
[1625213006317,16.0244,2059.0,2057.9,2.20527]
[1625213006408,1.1,2058.9,2057.9,2.20527]
[1625213006764,5.0,2059.6,2057.9,2.20527]
[1625213007163,5.0,2059.4,2057.9,2.20527]
[1625213007313,13.0,2059.4,2057.7,2.20527]
[1625213008066,1.1,2059.3,2057.7,2.20527]
[1625213008167,8.0,2059.2,2057.7,2.20527]
[1625213008314,2.20527,2057.8,2057.7,2.20527]
[1625213008412,2.20527,2057.9,2057.7,2.20527]
[1625213008512,3.6295,2058.4,2057.7,2.20527]
[1625213010220,2.20527,2058.1,2058.0,2.20527]
[1625213010670,7.1,2059.1,2058.0,2.20527]
[1625213010820,6.1,2059.1,2058.0,2.20527]
[1625213011570,2.8668,2059.2,2058.0,2.20527]
[1625213011676,1.1,2059.4,2058.0,2.20527]
[1625213011820,5.0,2059.5,2058.0,2.20527]
[1625213011921,1.41146949,2060.1,2058.0,5.60187]
[1625213012175,1.41135298,2060.3,2058.0,5.60187]
[1625213012272,2.20527,2058.5,2058.4,2.20527]
[1625213012474,1.0,2059.6,2058.4,2.20527]
[1625213012626,1.41135298,2060.3,2058.4,2.20527]
[1625213012773,5.0,2059.8,2058.4,2.20527]
[1625213012974,49.8481,2059.7,2058.4,2.20527]
[1625213013929,57.8481,2059.7,2058.4,2.20527]
[1625213014179,49.8481,2059.7,2058.4,2.20527]
[1625213014292,2.20527,2058.9,2058.8,2.20527]
[1625213016358,4.41054,2058.9,2058.8,2.20527]
[1625213018915,4.41054,2058.9,2058.4,2.20527]
[1625213020267,2.20527,2058.6,2058.4,2.20527]
[1625213027698,2.42011289,2059.6,2058.4,2.20527]
[1625213027796,1.42011289,2059.6,2058.4,4.57257]
[1625213028099,6.41999807,2059.8,2058.4,4.57257]
[1625213028198,50.6527,2059.7,2058.4,4.57257]
[1625213028298,50.6527,2059.7,2059.0,2.20527]
[1625213028299,2.20527,2059.1,2059.0,2.20527]
[1625213028850,5.46527,2059.1,2059.0,2.20527]
[1625213029702,5.46527,2059.1,2058.4,2.20527]
[1625213029805,10.46527,2059.1,2058.4,2.20527]
[1625213029954,10.46527,2059.1,2058.4,0.74627]
[1625213030104,10.46527,2059.1,2056.7,1.0]
[1625213030254,8.0,2058.9,2056.6,14.3687]
[1625213030403,2.20527,2057.3,2056.6,14.3687]
[1625213030506,5.55487,2057.3,2056.0,1.37571613]
[1625213030653,52.7464,2057.1,2056.0,1.37571613]
[1625213030856,52.7464,2057.1,2055.6,1.37741698]
[1625213031255,52.7464,2057.1,2054.9,14.8785]
[1625213031256,52.7464,2057.1,2055.5,1.37860404]
[1625213031554,52.7464,2057.1,2055.4,1.37953473]
[1625213031654,53.7464,2057.1,2055.4,1.37953473]
[1625213032007,53.7464,2057.1,2055.2,1.38025648]
[1625213032407,53.7464,2057.1,2056.1,2.20527]
[1625213032408,2.20527,2056.2,2056.1,2.20527]
[1625213032561,5.46767,2056.2,2056.1,2.20527]
[1625213032956,3.2624,2056.2,2056.1,2.20527]
[1625213033316,1.0,2057.0,2056.1,2.20527]
[1625213033413,1.1,2058.1,2056.1,5.21077]
[1625213033663,1.0,2058.0,2056.1,5.21077]
[1625213034064,3.3453,2058.0,2056.1,5.21077]
[1625213034262,5.0,2057.9,2056.1,5.21077]
[1625213034364,2.20527,2056.9,2056.8,2.20527]
[1625213034516,5.21487,2056.9,2056.8,2.20527]
[1625213034917,5.21487,2056.9,2055.3,1.38261281]
[1625213035167,10.21487,2056.9,2055.2,1.38286879]
[1625213035468,18.21487,2056.9,2055.2,1.38286879]